fUSD/lending_fUSD_20240917
["ID","MTS","AMOUNT","RATE_DAILY","PERIOD"]
[338345383,1726535446627,-372.33503226,0.00014963,2]
[338345384,1726535446639,-1127.66496774,0.00014963,2]
[338345385,1726535446648,-150.0,0.00014972,2]
[338345386,1726535446658,-500.0,0.00014973,2]
[338345387,1726535446671,-500.0,0.00014973,2]
[338345388,1726535446686,-2691.16964487,0.00014979,2]
[338345389,1726535446696,-151.35147807,0.00014986,2]
[338345390,1726535446706,-21915.12056932,0.0001499,5]
[338345391,1726535446717,-1620.42084879,0.0001499,5]
[338345392,1726535446743,-361.14764114,0.0001499,5]
[338345393,1726535446755,-11565.1866171,0.0001499,5]
[338345394,1726535486246,500.0,0.00011164,2]
[338345395,1726535511792,500.0,0.00011164,2]
[338345399,1726535576939,596.67611355,0.00011164,2]
[338345400,1726535585563,298.01,0.00011991,2]
[338345401,1726535603780,500.0,0.00011164,2]
[338345403,1726535679746,7699.34,0.00026,60]
[338345404,1726535680033,735.45461028,0.00026,60]
[338345405,1726535733365,168.16,0.00010959,2]
[338345409,1726536151409,296.37,0.00011683,2]
[338345410,1726536289428,1050.0,0.00011,2]
[338345413,1726536358439,173.31,0.00010959,2]
[338345415,1726536420102,749.49,0.00010959,2]
[338345427,1726536555212,6885.6773,0.000126,2]
[338345500,1726536632213,-159.34471816,0.000129,2]
[338345501,1726536632222,-1285.07823786,0.000129,2]
[338345502,1726536632232,-206.7960771,0.000129,2]
[338345503,1726536632241,-322.67939186,0.000129,2]
[338345504,1726536632251,-500.0,0.00012973,2]
[338345505,1726536632262,-500.0,0.00012973,2]
[338345506,1726536632272,-200.0,0.00012973,2]
[338345507,1726536632281,-500.92239473,0.00012973,2]
[338345508,1726536632291,-259.49,0.0001299,2]
[338345509,1726536632301,-259.49,0.0001299,2]
[338345510,1726536632311,-29.50722751,0.0001299,2]
[338345511,1726536632323,-229.98277249,0.0001299,2]
[338345512,1726536632333,-152.56,0.0001299,2]
[338345513,1726536632342,-152.56,0.0001299,2]
[338345514,1726536632351,-152.56,0.0001299,2]
[338345515,1726536632361,-152.56,0.0001299,2]
[338345516,1726536632370,-300.0,0.00012998,2]
[338345517,1726536632380,-1128.54233422,0.00012999,2]
[338345518,1726536632389,-500.0,0.00012999,2]
[338345519,1726536632399,-500.0,0.00012999,2]
[338345520,1726536632409,-519.40523966,0.00012999,2]
[338345521,1726536632418,-500.0,0.00012999,2]
[338345523,1726536632427,-500.0,0.00012999,2]
[338345524,1726536632436,-500.0,0.00012999,2]
[338345525,1726536632446,-405.81430963,0.00012999,2]
[338345526,1726536632458,-127.94024784,0.00012999,2]
[338345527,1726536632469,-150.0,0.00012999,2]
[338345528,1726536632479,-150.0,0.00012999,2]
[338345529,1726536632489,-181.92319878,0.00013,2]
[338345530,1726536632503,-567.6122975,0.00013,2]
[338345531,1726536632519,-5950.0,0.00013,2]
[338345532,1726536632532,-2399.99999998,0.00013,2]
[338345533,1726536632543,-3336.88164217,0.00013,2]
[338345534,1726536632555,-255.5570155,0.00013,2]
[338345535,1726536632567,-41537.44609881,0.00013,2]
[338345536,1726536632577,-258474.45181319,0.00013,2]
[338345537,1726536632589,-117057.14017317,0.00013,2]
[338345538,1726536632601,-899.999998,0.00013,2]
[338345539,1726536632612,-315.30715705,0.00013,2]
[338345541,1726536633513,346.25620563,0.00011164,2]
[338345549,1726536638229,-255.3477856,0.00013,2]
[338345550,1726536638241,-835.77,0.00013,2]
[338345551,1726536638254,-1336.95843271,0.00013,2]
[338345552,1726536638265,-424.23128212,0.00013,2]
[338345553,1726536638276,-653.67901261,0.00013,2]
[338345554,1726536638364,-626.16993068,0.00013,2]
[338345555,1726536638375,-2735.53908701,0.00013,2]
[338345556,1726536638386,-2006.20876235,0.00013,2]
[338345557,1726536638495,-729.34795291,0.0001299,2]
[338345558,1726536638504,-1552173.0093161,0.00013,2]
[338345559,1726536638515,-3936.04611518,0.00013,2]
[338345560,1726536638526,-29492.000001,0.00013,2]
[338345561,1726536638537,-294.91857507,0.00013,2]
[338345645,1726536640214,-337088.6346469,0.00013,2]
[338345647,1726536640400,-384.522,0.00013,2]
[338345648,1726536640412,-330.38500001,0.00013,2]
[338345649,1726536640428,-317.62318925,0.00013,2]
[338345737,1726536646164,-5074.3214211,0.00013,2]
[338345738,1726536646176,-571.28742039,0.00013,2]
[338345739,1726536646297,-4041.25583991,0.00013,2]
[338345740,1726536646431,-1006.8,0.00013,2]
[338345847,1726536720279,314.93,0.00010864,2]
[338345908,1726536759165,250.0,0.00012616,2]
[338345914,1726536764696,1852.42,0.00012616,2]
[338345966,1726536782721,200.0,0.00012615,2]
[338346158,1726536872744,153.08,0.00010959,2]
[338346208,1726536901472,228.39,0.00012558,2]
[338346258,1726536925886,645.66,0.00012558,2]
[338346296,1726536948722,250.0,0.00012558,2]
[338346411,1726536994696,520.0,0.00012576,2]
[338346732,1726537191382,889.0,0.00012,5]
[338346752,1726537210620,500.0,0.00012415,2]
[338346755,1726537210785,150.0,0.00012415,2]
[338346830,1726537263181,250.0,0.00012527,2]
[338346874,1726537277499,312.73,0.00010641,2]
[338346921,1726537310708,4249.61,0.00012508,2]
[338346946,1726537330042,390.93,0.00012463,2]
[338347106,1726537464483,157.22,0.00010959,2]
[338347136,1726537488298,756.83,0.00012609,2]
[338347174,1726537518481,584.0,0.00012431,2]
[338347207,1726537541055,2714.79,0.00012431,2]
[338347292,1726537599494,456.18,0.00012375,2]
[338347321,1726537635747,638.61,0.00012416,2]
[338347386,1726537693261,250.0,0.00012416,2]
[338347409,1726537708431,150.0,0.00012397,2]
[338347464,1726537753758,250.0,0.00012345,2]
[338347505,1726537788775,309.28,0.00010629,2]
[338347540,1726537807544,250.0,0.00012381,2]
[338347580,1726537832333,-154.365,0.0001274,2]
[338347581,1726537832343,-173.06,0.00012757,2]
[338347582,1726537832353,-150.0,0.00012877,2]
[338347583,1726537832362,-309.28,0.00012892,2]
[338347584,1726537832372,-300.0,0.00012899,2]
[338347585,1726537832381,-198.32327427,0.000129,2]
[338347586,1726537832391,-475.10825062,0.000129,2]
[338347587,1726537832404,-706.63800927,0.000129,2]
[338347588,1726537832413,-334.3153715,0.000129,2]
[338347589,1726537832423,-507.09520599,0.00012973,2]
[338347590,1726537832433,-445.75875997,0.00012973,2]
[338347591,1726537832442,-503.97595646,0.00012973,2]
[338347592,1726537832452,-584.25286806,0.0001299,2]
[338347593,1726537832721,-201.95868963,0.0001299,2]
[338347594,1726537832731,-898.56299841,0.0001299,2]
[338347603,1726537838403,-13.86700159,0.0001299,2]
[338347604,1726537838414,-150.99,0.0001299,2]
[338347605,1726537838424,-499.99,0.0001299,2]
[338347606,1726537838433,-1136.65,0.0001299,2]
[338347607,1726537838443,-155.11,0.0001299,2]
[338347608,1726537838453,-150.0,0.00012999,2]
[338347609,1726537838462,-163.05047459,0.00012999,2]
[338347610,1726537838472,-34136.95815191,0.00013,2]
[338347611,1726537838482,-371557.96531631,0.00013,2]
[338347612,1726537838493,-597.32245672,0.00013,2]
[338347613,1726537838507,-291.69999996,0.00013,2]
[338347614,1726537838519,-22987.75951898,0.00013,2]
[338347615,1726537838557,-271.5575083,0.00013,2]
[338347616,1726537838568,-757.258615,0.00013,2]
[338347617,1726537838579,-749.16801156,0.00013,2]
[338347618,1726537838590,-314.0457581,0.00013,2]
[338347619,1726537838601,-7635.85806297,0.00013,2]
[338347620,1726537838720,-868.46789177,0.00013,2]
[338347621,1726537838732,-29047.07754972,0.00013,2]
[338347622,1726537838749,-529.76522685,0.00013,2]
[338347623,1726537838760,-499.45156712,0.00013,2]
[338347625,1726537840389,-489.85387228,0.00013,2]
[338347626,1726537840402,-385.95255073,0.00013,2]
[338347627,1726537840691,-1600.0,0.00013,2]
[338347628,1726537840703,-202418.95798903,0.00013,2]
[338347629,1726537840714,-1013.09229322,0.00013,2]
[338347630,1726537840725,-817.1403561,0.00013,2]
[338347631,1726537840742,-544.3214498,0.00013,2]
[338347632,1726537840757,-252.02583929,0.00013,2]
[338347633,1726537840769,-7659.00000018,0.00013,2]
[338347738,1726537843411,-832.28687525,0.00013,2]
[338347739,1726537843423,-874.54195962,0.00013,2]
[338347740,1726537843435,-8834.14917,0.00013,2]
[338347741,1726537843446,-1079.47615358,0.00013,2]
[338347742,1726537843458,-4689.84449012,0.00013,2]
[338347744,1726537843469,-539.447999,0.00013,2]
[338347745,1726537843480,-701.91000015,0.00013,2]
[338347747,1726537843491,-10582.75058417,0.00013,2]
[338347750,1726537844141,-669.83166548,0.00013,2]
[338347751,1726537844152,-15517.04756655,0.00013,2]
[338347752,1726537844164,-549.999999,0.00013,2]
[338347753,1726537844175,-1185.0,0.00013,2]
[338347756,1726537846319,-92335.59013077,0.00013,2]
[338347757,1726537846505,-1225.48002,0.00013,2]
[338347758,1726537846517,-1698.87654714,0.00013,2]
[338347759,1726537846528,-277.72958304,0.00013,2]
[338347760,1726537846540,-444.6191269,0.00013,2]
[338347761,1726537846551,-388.60201345,0.00013,2]
[338348062,1726538091787,541.3810985,0.00011,2]
[338348063,1726538091813,424.06327274,0.00011,2]
[338348065,1726538091837,84.55562876,0.00011,2]
[338348266,1726538249769,150.0,0.00012599,2]
[338348271,1726538253318,250.0,0.00012599,2]
[338348324,1726538298772,292.01,0.00010657,2]
[338348351,1726538328167,23900.0,0.00012529,2]
[338348408,1726538388038,172.32,0.00012486,2]
[338348537,1726538498097,420.65,0.00012571,2]
[338348575,1726538530257,166.34,0.00010959,2]
[338348625,1726538569422,535.24,0.00012518,2]
[338348818,1726538710455,462.2,0.00012419,2]
[338348836,1726538719387,508.17,0.00012407,2]
[338348887,1726538756985,250.0,0.00012405,2]
[338348905,1726538771576,200.0,0.00012405,2]
[338348952,1726538816060,250.0,0.00012455,2]
[338348970,1726538833017,162.13,0.00012446,2]
[338349015,1726538874386,250.0,0.00012616,2]
[338349027,1726538889217,303.36,0.00010629,2]
[338349152,1726539003707,-157.17,0.00012631,2]
[338349154,1726539007842,151.09,0.00012386,2]
[338349159,1726539012745,-157.17,0.00012631,2]
[338349181,1726539032866,-207.79,0.00012641,2]
[338349182,1726539032876,-467.2,0.00012704,2]
[338349183,1726539032886,-370.45000008,0.00012765,2]
[338349189,1726539038657,-162.34999992,0.00012765,2]
[338349190,1726539038668,-300.0,0.00012799,2]
[338349191,1726539038677,-304.16726529,0.000128,2]
[338349192,1726539038691,-759.40436862,0.000128,2]
[338349193,1726539038699,-15.64949817,0.000128,2]
[338349233,1726539040727,-2954.63830183,0.000128,2]
[338349234,1726539040737,-4017.4951,0.000128,2]
[338349235,1726539040746,-3793.2139,0.000128,2]
[338349236,1726539040755,-214.1929,0.000128,2]
[338349237,1726539040765,-1007.8495,0.000128,2]
[338349238,1726539040774,-2886.00847279,0.000128,2]
[338349239,1726539040785,-1067.33222721,0.000128,2]
[338349240,1726539040795,-2500.0,0.000128,2]
[338349241,1726539040804,-1771.12096375,0.000128,2]
[338349367,1726539043659,-3057.99213625,0.000128,2]
[338349368,1726539043670,-150.59871673,0.00012854,2]
[338349369,1726539043679,-698.66,0.00012855,2]
[338349370,1726539043689,-2057.99295,0.0001287,2]
[338349371,1726539043699,-2057.99295,0.0001287,2]
[338349372,1726539043708,-2057.99295,0.0001287,2]
[338349373,1726539043719,-2057.99295,0.0001287,2]
[338349374,1726539043729,-303.36,0.00012893,2]
[338349375,1726539043739,-234.9151,0.000129,2]
[338349376,1726539043749,-126067.7373,0.000129,2]
[338349377,1726539043758,-194.23080626,0.000129,2]
[338349378,1726539043768,-93538.5861278,0.000129,2]
[338349386,1726539046579,-91573.7565722,0.000129,2]
[338349387,1726539046589,-1381.617,0.000129,2]
[338349388,1726539046598,-1000.0,0.000129,2]
[338349389,1726539046608,-425.9016,0.000129,2]
[338349391,1726539046617,-1000.0,0.000129,2]
[338349392,1726539046626,-4385.20166148,0.000129,2]
[338349393,1726539046636,-500.0,0.00012973,2]
[338349394,1726539046646,-501.79664669,0.00012973,2]
[338349395,1726539046655,-167.898,0.0001299,2]
[338349396,1726539046664,-156.23,0.0001299,2]
[338349397,1726539046673,-17068.47907596,0.00013,2]
[338349398,1726539046683,-518101.76391968,0.00013,2]
[338349399,1726539046694,-12350.31781265,0.00013,2]
[338349401,1726539046705,-2859.89930432,0.00013,2]
[338349402,1726539046716,-4960.51153717,0.00013,2]
[338349403,1726539046726,-7818.3596,0.00013,2]
[338349404,1726539046737,-3795.64476265,0.00013,2]
[338349405,1726539046748,-281.00881241,0.00013,2]
[338349406,1726539046763,-520.38152683,0.00013,2]
[338349407,1726539046774,-50762.78099808,0.00013,2]
[338349408,1726539046783,-122102.74687225,0.00013,2]
[338349409,1726539046829,-252.32,0.00013,2]
[338349410,1726539046950,-273.72011597,0.00013,2]
[338349411,1726539046961,-612.67,0.00013,2]
[338349412,1726539046972,-365.58094859,0.00013,2]
[338349413,1726539046983,-1102.43613394,0.00013,2]
[338349414,1726539046994,-417.47216,0.00013,2]
[338349415,1726539047005,-2990.50036596,0.00013,2]
[338349508,1726539130119,186.5,0.00012653,2]
[338349521,1726539144534,796.0,0.00012632,2]
[338349547,1726539204150,97.59000193,0.00012628,2]
[338349548,1726539204177,313.98880635,0.00012628,2]
[338349549,1726539204204,2648.80318767,0.00012628,2]
[338349550,1726539204228,3327.11930405,0.00012628,2]
[338349551,1726539208236,231.1,0.00012599,2]
[338349552,1726539224575,1000.0,0.00012499,2]
[338349553,1726539256915,250.0,0.00012499,2]
[338349554,1726539266767,1808.29,0.00012499,2]
[338349555,1726539334785,209320.0,0.000126,2]
[338349556,1726539343288,23900.0,0.00012394,2]
[338349557,1726539383295,250.0,0.00012385,2]
[338349558,1726539432064,380.4451,0.000126,2]
[338349559,1726539435313,2045.8207,0.000126,2]
[338349561,1726539469943,302.17,0.00010383,2]
[338349562,1726539492081,11510.0,0.000125,3]
[338349564,1726539673221,156.86,0.00010959,2]
[338349565,1726539678432,2142.261,0.000124,5]
[338349566,1726539678456,9367.739,0.000124,5]
[338349568,1726539729584,558.92,0.00012284,2]
[338349569,1726539740754,923.586614,0.00012583,2]
[338349571,1726539768203,231.1,0.00012315,2]
[338349572,1726539820192,200.0,0.00012283,2]
[338349573,1726539831041,250.0,0.00012283,2]
[338349574,1726539894273,1050.0,0.00011,2]
[338349578,1726540052382,315.07,0.00010351,2]
[338349579,1726540052812,315.07,0.00012615,2]
[338349580,1726540059309,155.99,0.00012269,2]
[338349581,1726540090445,250.0,0.00012279,2]
[338349583,1726540190517,-4397.54046424,0.000127,2]
[338349584,1726540190552,-4397.54046424,0.000127,2]
[338349585,1726540190585,-4397.54046424,0.000127,2]
[338349586,1726540190620,-4397.54046424,0.000127,2]
[338349587,1726540190660,-3111.10359246,0.000127,2]
[338349588,1726540190696,-4397.54046424,0.000127,2]
[338349589,1726540190732,-4397.54046424,0.000127,2]
[338349590,1726540190781,-4397.54046424,0.000127,2]
[338349591,1726540190841,-4397.54046424,0.000127,2]
[338349616,1726540231736,-925.1775,0.000127,2]
[338349617,1726540231748,-5459.89578406,0.000127,2]
[338349618,1726540231760,-1150.4,0.000127,2]
[338349622,1726540237952,-3062.79878318,0.000127,2]
[338349623,1726540239759,-0.02793489,0.000127,2]
[338349624,1726540239873,-11083.43189149,0.000127,2]
[338349625,1726540239883,-61100.14000837,0.000127,2]
[338349626,1726540239892,-1500.0,0.0001274,2]
[338349627,1726540239902,-259.3262416,0.00012751,2]
[338349628,1726540239911,-150.0,0.0001279,2]
[338349629,1726540239921,-185.74943012,0.00012792,2]
[338349630,1726540239932,-150.0,0.00012794,2]
[338349631,1726540239941,-3030.1003,0.000128,2]
[338349632,1726540239950,-1379.4,0.000128,2]
[338349633,1726540239960,-1408.68455519,0.000128,2]
[338349634,1726540239970,-1500.0,0.00012863,2]
[338349635,1726540239979,-499.99,0.00012863,2]
[338349636,1726540239989,-4151.16,0.00012863,2]
[338349637,1726540239998,-150.99,0.00012863,2]
[338349638,1726540240008,-1598.30587061,0.00012865,2]
[338349639,1726540240017,-150.99,0.00012865,2]
[338349640,1726540240026,-299.99,0.00012865,2]
[338349641,1726540240035,-5845.38,0.00012865,2]
[338349642,1726540240045,-323.08,0.00012865,2]
[338349643,1726540240055,-325.2054,0.0001287,2]
[338349644,1726540240064,-999.99,0.0001287,2]
[338349645,1726540240074,-499.99,0.0001287,2]
[338349646,1726540240083,-600.4,0.0001287,2]
[338349647,1726540240092,-179.99,0.00012893,2]
[338349648,1726540240102,-872.327087,0.000129,2]
[338349649,1726540240111,-35519.0733,0.000129,2]
[338349650,1726540240120,-1000.0,0.000129,2]
[338349651,1726540240129,-3045.6988,0.000129,2]
[338349652,1726540240139,-4274.337,0.000129,2]
[338349653,1726540240148,-477.9566,0.000129,2]
[338349654,1726540240158,-200.3888,0.000129,2]
[338349655,1726540240167,-4812.6731,0.000129,2]
[338349656,1726540240176,-225.7068,0.000129,2]
[338349657,1726540240186,-5136.858,0.000129,2]
[338349659,1726540240195,-191.69347733,0.000129,2]
[338349661,1726540240205,-2500.0,0.000129,2]
[338349663,1726540240215,-172.93566436,0.000129,2]
[338349665,1726540240224,-327.13282787,0.000129,2]
[338349667,1726540240234,-4105.75401624,0.000129,2]
[338349669,1726540240243,-155.07166074,0.0001292,2]
[338349671,1726540240253,-500.0,0.00012973,2]
[338349673,1726540240262,-156.99,0.0001299,2]
[338349675,1726540240272,-156.99,0.0001299,2]
[338349677,1726540240281,-253.98176493,0.00012999,2]
[338349679,1726540240290,-480.97580545,0.00012999,3]
[338349681,1726540240300,-150.0,0.00012999,2]
[338349683,1726540240309,-19636.80427502,0.00013,2]
[338349685,1726540240320,-1342633.90321428,0.00013,2]
[338349687,1726540240329,-2000.0,0.00013,2]
[338349689,1726540240340,-200.0,0.00013,2]
[338349691,1726540240350,-2000.0,0.00013,2]
[338349693,1726540240359,-200.0,0.00013,2]
[338349695,1726540240368,-200.0,0.00013,2]
[338349697,1726540240378,-3867515.37700365,0.00013,2]
[338349752,1726540242732,-440.31893336,0.00013,2]
[338349754,1726540245690,-5354.87519808,0.00013,2]
[338349755,1726540245702,-5576.00007143,0.00013,2]
[338349925,1726540318078,840.0,0.00012619,2]
[338349926,1726540402001,250.0,0.00012491,2]
[338349935,1726540544521,303.73,0.00010532,2]
[338349936,1726540555874,532.32,0.00012408,2]
[338349938,1726540603142,250.0,0.0001251,2]
[338349939,1726540615853,241.09,0.00012466,2]
[338349940,1726540698738,156.3,0.00010959,2]
[338349941,1726540704982,14992.08,0.00012419,2]
[338349948,1726540840419,250.0,0.0001229,2]
[338349950,1726540883379,250.0,0.0001229,2]
[338349953,1726540913490,328.0,0.00012253,2]
[338349962,1726541058934,500.0,0.00012154,2]
[338349963,1726541059413,500.0,0.00012154,2]
[338349964,1726541059850,500.0,0.00012155,2]
[338349965,1726541060367,500.0,0.00012155,2]
[338349966,1726541060825,500.0,0.00012155,2]
[338349967,1726541061352,500.0,0.00012155,2]
[338349968,1726541061941,500.0,0.00012155,2]
[338349969,1726541062403,500.0,0.00012155,2]
[338349970,1726541062989,500.0,0.00012155,2]
[338349972,1726541077082,169.85,0.00012281,2]
[338349973,1726541080572,200.0,0.00012154,2]
[338349974,1726541081095,200.0,0.00012155,2]
[338349975,1726541082408,200.0,0.00012155,2]
[338349976,1726541082877,200.0,0.00012155,2]
[338349986,1726541155789,273.53,0.00012306,2]
[338349988,1726541226083,157.38,0.00010959,2]
[338349994,1726541258751,250.0,0.00012196,2]
[338350002,1726541347695,303.39,0.00010311,2]
[338350003,1726541347917,303.39,0.00012575,2]
[338350026,1726541407904,250.0,0.00012196,2]
[338350065,1726541438313,-446.11207467,0.00012731,2]
[338350067,1726541438322,-2202.0,0.00012741,2]
[338350069,1726541438331,-3201.0144,0.000128,2]
[338350071,1726541438341,-1500.0,0.00012839,2]
[338350073,1726541438351,-685.99764,0.0001287,2]
[338350075,1726541438360,-300.0,0.00012899,2]
[338350077,1726541438369,-1000.0,0.000129,2]
[338350079,1726541438380,-2905.6029,0.000129,2]
[338350081,1726541438389,-189.90481514,0.000129,2]
[338350083,1726541438399,-1761.43652755,0.000129,2]
[338350085,1726541438409,-1500.0,0.00012909,2]
[338350087,1726541438418,-1500.0,0.00012958,2]
[338350089,1726541438427,-537.02,0.00012958,2]
[338350091,1726541438437,-1392.98,0.00012958,2]
[338350093,1726541438446,-150.0,0.0001297,2]
[338350095,1726541438456,-1006.84662777,0.00012971,2]
[338350097,1726541438465,-185.93,0.00012972,2]
[338350099,1726541438475,-35156.74,0.00012972,2]
[338350101,1726541438485,-499.99,0.00012972,2]
[338350103,1726541438497,-500.0,0.00012973,2]
[338350105,1726541438506,-510.98011248,0.00012973,2]
[338350107,1726541438515,-1500.0,0.00012979,2]
[338350109,1726541438525,-160.7,0.0001299,2]
[338350111,1726541438534,-173.67651278,0.00012998,2]
[338350113,1726541438543,-580.10732863,0.00012999,2]
[338350115,1726541438553,-166.53490925,0.00012999,2]
[338350117,1726541438562,-795.0,0.00013,2]
[338350119,1726541438572,-688417.87816525,0.00013,2]
[338350121,1726541438581,-459807.67059774,0.00013,2]
[338350252,1726541439904,-1076.0,0.00013,2]
[338350255,1726541439916,-112301.90411632,0.00013,2]
[338350288,1726541440228,-20801.12454194,0.00013,2]
[338350290,1726541440240,-1549.25363356,0.00013,2]
[338350293,1726541440251,-583.71188983,0.00013,2]
[338350295,1726541440262,-270.61513313,0.00013,2]
[338350482,1726541442814,-223.7959,0.000129,2]
[338350484,1726541442824,-10592.81768908,0.00013,2]
[338350503,1726541442934,-872.61720059,0.00013,2]
[338350505,1726541442947,-8500.0,0.00013,2]
[338350518,1726541443061,-29778.88781335,0.00013,2]
[338350549,1726541443961,-317.58278286,0.00013,2]
[338350550,1726541444100,-2851.5,0.00013,2]
[338350551,1726541445978,-448.48,0.00013,2]
[338350552,1726541446115,-218.52,0.00013,2]
[338350553,1726541446125,-118567.72918,0.00013,2]
[338350702,1726541472236,766.26,0.00010959,2]
[338350703,1726541571833,1000.0,0.00012559,2]
[338350704,1726541661888,500.0,0.00012458,2]
[338350706,1726541662397,500.0,0.00012458,2]
[338350707,1726541663323,500.0,0.00012459,2]
[338350708,1726541663856,500.0,0.00012459,2]
[338350709,1726541664337,500.0,0.00012459,2]
[338350710,1726541680580,200.0,0.00012459,2]
[338350711,1726541697747,1050.0,0.00011,2]
[338350714,1726541840566,303.26,0.00010828,2]
[338350716,1726541857446,166.34,0.00010959,2]
[338350729,1726542113811,250.0,0.00012274,2]
[338350730,1726542225547,178.38,0.00012275,2]
[338350731,1726542225821,322.31,0.00012275,2]
[338350732,1726542263796,500.0,0.00012176,2]
[338350733,1726542278817,200.0,0.00012176,2]
[338350734,1726542281050,23900.0,0.00012233,2]
[338350735,1726542322547,250.0,0.00012226,2]
[338350736,1726542336062,302.72,0.00010354,2]
[338350737,1726542336293,302.72,0.00012618,2]
[338350754,1726542623385,150.44,0.00010959,2]
[338350762,1726542632148,-420.816,0.00012804,2]
[338350763,1726542632159,-764.1593386,0.00012804,2]
[338350764,1726542632363,-315.0246614,0.00012804,2]
[338350765,1726542632374,-1500.0,0.00012822,2]
[338350766,1726542632383,-1500.0,0.00012866,2]
[338350767,1726542632393,-447.13,0.00012867,2]
[338350768,1726542632402,-1779.26333743,0.0001287,2]
[338350769,1726542632412,-685.99765,0.0001287,2]
[338350770,1726542632421,-300.0,0.00012898,2]
[338350771,1726542632431,-2083.3018,0.000129,2]
[338350772,1726542632440,-685.99765,0.000129,2]
[338350773,1726542632449,-271.0045,0.000129,2]
[338350774,1726542632459,-685.99765,0.0001293,2]
[338350775,1726542632469,-200.0,0.00012942,2]
[338350776,1726542632478,-271.0045,0.0001297,2]
[338350777,1726542632487,-1500.0,0.00012983,2]
[338350778,1726542632496,-150.99,0.00012983,2]
[338350779,1726542632506,-345.60525111,0.00012983,2]
[338350780,1726542632517,-40.69474889,0.00012983,2]
[338350781,1726542632526,-290.44662321,0.0001299,2]
[338350782,1726542632535,-150.0,0.00012999,2]
[338350783,1726542632545,-250.07270292,0.00013,2]
[338350837,1726542638272,-491.77976376,0.00013,2]
[338350838,1726542638283,-10340.0,0.00013,2]
[338350839,1726542638295,-955.27057878,0.00013,2]
[338350840,1726542638470,-365.57049303,0.00013,2]
[338350913,1726542643267,-5483.79182862,0.00013,2]
[338350915,1726542643468,-165838.85678079,0.00013,2]
[338350917,1726542643478,-700.04582732,0.00013,2]
[338350918,1726542643487,-657.09897861,0.00013,2]
[338350919,1726542643496,-2000.0,0.00013,2]
[338350920,1726542643505,-200.0,0.00013,2]
[338350921,1726542643514,-1281.44319668,0.00013,2]
[338350922,1726542643524,-200.0,0.00013,2]
[338350923,1726542643534,-312.25,0.00013,2]
[338350924,1726542643543,-200.0,0.00013,2]
[338350925,1726542643554,-685.99765,0.00013,2]
[338350926,1726542643564,-685.99765,0.00013,2]
[338350927,1726542643573,-271.0045,0.00013,2]
[338350928,1726542643583,-271.0045,0.00013,2]
[338350929,1726542643592,-200.0,0.00013,2]
[338350930,1726542643602,-271.0045,0.0001306,2]
[338350931,1726542643612,-2508.0,0.00013124,2]
[338350932,1726542643622,-279.83161037,0.00013125,2]
[338350933,1726542643631,-200.0,0.0001313,2]
[338350934,1726542643640,-200.0,0.0001313,2]
[338350935,1726542643650,-200.0,0.0001313,2]
[338350936,1726542643659,-271.00451,0.0001313,2]